[Event "The Schackveckan 2023: Chessweek Elo-tournaments Group 2"]
[Site "Göteborgs schackcentrum, Vegagatan 20, Gothenburg, Sweden"]
[Date "2023.08.07"]
[Round "3.3"]
[White "Yang, Mandi"]
[Black "Andreasson, Emanuel"]
[Result "1/2-1/2"]
[TimeControl "90 minutes for 40 moves + 30 minutes for the rest of the game + 30 seconds per move from move one."]
[WhiteFideId "1774778"]
[BlackFideId "1759620"]
[WhiteElo "1457"]
[BlackElo "1367"]

1. d4 {[%clk 01:30:45]} {[%emt 00:00:15]} Nf6 {[%clk 01:30:44]} {[%emt
00:00:17]} 2. Nf3 {[%clk 01:30:33]} {[%emt 00:00:41]} g6 {[%clk 01:31:07]}
{[%emt 00:00:06]} 3. c4 {[%clk 01:30:25]} {[%emt 00:00:39]} Bg7 {[%clk
01:31:29]} {[%emt 00:00:07]} 4. Nc3 {[%clk 01:29:44]} {[%emt 00:01:12]} O-O
{[%clk 01:31:51]} {[%emt 00:00:06]} 5. e4 {[%clk 01:29:44]} {[%emt 00:00:32]}
d6 {[%clk 01:32:16]} {[%emt 00:00:05]} 6. Be2 {[%clk 01:29:17]} {[%emt
00:00:57]} e5 {[%clk 01:32:36]} {[%emt 00:00:09]} 7. O-O {[%clk 01:26:16]}
{[%emt 00:03:32]} Nc6 {[%clk 01:32:59]} {[%emt 00:00:06]} 8. d5 {[%clk
01:21:36]} {[%emt 00:05:12]} Ne7 {[%clk 01:33:09]} {[%emt 00:00:19]} 9. Be3
{[%clk 01:20:49]} {[%emt 00:01:18]} Ne8 {[%clk 01:23:39]} {[%emt 00:09:59]} 10.
Nd2 {[%clk 01:17:59]} {[%emt 00:03:21]} f5 {[%clk 01:20:51]} {[%emt 00:03:17]}
11. f3 {[%clk 01:18:20]} {[%emt 00:00:09]} f4 {[%clk 01:17:39]} {[%emt
00:03:42]} 12. Bf2 {[%clk 01:18:41]} {[%emt 00:00:09]} g5 {[%clk 01:15:13]}
{[%emt 00:02:56]} 13. b4 {[%clk 01:11:26]} {[%emt 00:07:46]} Ng6 {[%clk
01:11:54]} {[%emt 00:03:48]} 14. c5 {[%clk 01:10:30]} {[%emt 00:01:26]} Nf6
{[%clk 01:08:30]} {[%emt 00:03:54]} 15. Rc1 {[%clk 01:05:59]} {[%emt 00:05:01]}
h5 {[%clk 01:02:21]} {[%emt 00:06:38]} 16. cxd6 {[%clk 01:00:34]} {[%emt
00:05:56]} cxd6 {[%clk 01:00:39]} {[%emt 00:02:12]} 17. Nb5 {[%clk 00:55:45]}
{[%emt 00:05:19]} g4 {[%clk 00:51:22]} {[%emt 00:09:47]} 18. Nc7 {[%clk
00:51:59]} {[%emt 00:04:16]} g3 {[%clk 00:48:45]} {[%emt 00:03:05]} 19. hxg3
{[%clk 00:37:56]} {[%emt 00:14:35]} fxg3 {[%clk 00:46:38]} {[%emt 00:02:38]} 20.
Bxg3 {[%clk 00:35:19]} {[%emt 00:03:06]} h4 {[%clk 00:39:02]} {[%emt 00:08:06]}
21. Bf2 {[%clk 00:30:20]} {[%emt 00:05:28]} Nf4 {[%clk 00:26:41]} {[%emt
00:12:52]} 22. Nxa8 {[%clk 00:24:20]} {[%emt 00:06:30]} Bh3 {[%clk 00:21:19]}
{[%emt 00:05:53]} 23. gxh3 {[%clk 00:20:41]} {[%emt 00:04:07]} Qd7 {[%clk
00:18:24]} {[%emt 00:03:21]} 24. Be3 {[%clk 00:10:52]} {[%emt 00:10:24]} N6h5
{[%clk 00:05:18]} {[%emt 00:13:36]} 25. Bxf4 {[%clk 00:05:08]} {[%emt
00:06:14]} Nxf4 {[%clk 00:05:18]} {[%emt 00:00:30]} 26. Rc7 {[%clk 00:04:29]}
{[%emt 00:01:09]} Qxh3 {[%clk 00:05:09]} {[%emt 00:00:38]} 27. Rxg7+ {[%clk
00:04:38]} {[%emt 00:00:22]} Kxg7 {[%clk 00:05:25]} {[%emt 00:00:14]} 28. Kf2
{[%clk 00:04:50]} {[%emt 00:00:18]} Qh2+ {[%clk 00:02:54]} {[%emt 00:03:01]} 29.
Ke3 {[%clk 00:04:58]} {[%emt 00:00:21]} Rc8 {[%clk 00:01:32]} {[%emt 00:01:52]}
30. Nc4 {[%clk 00:01:44]} {[%emt 00:03:45]} b5 {[%clk 00:01:17]} {[%emt
00:00:45]} 31. Rh1 {[%clk 00:01:50]} {[%emt 00:00:23]} Ng2+ {[%clk 00:01:03]}
{[%emt 00:00:45]} 32. Kd2 {[%clk 00:00:40]} {[%emt 00:01:40]} Qf4+ {[%clk
00:01:17]} {[%emt 00:00:16]} 33. Kc3 {[%clk 00:00:47]} {[%emt 00:00:24]} bxc4
{[%clk 00:00:40]} {[%emt 00:01:07]} 34. Rg1 {[%clk 00:00:40]} {[%emt 00:00:35]}
Qe3+ {[%clk 00:00:38]} {[%emt 00:00:33]} 1/2-1/2

[Event "The Schackveckan 2023: Chessweek Elo-tournaments Group 2"]
[Site "Göteborgs schackcentrum, Vegagatan 20, Gothenburg, Sweden"]
[Date "2023.08.07"]
[Round "3.5"]
[White "Brattgjerd, August Minh"]
[Black "Gallardo, Guillermo"]
[Result "0-1"]
[TimeControl "90 minutes for 40 moves + 30 minutes for the rest of the game + 30 seconds per move from move one."]
[WhiteFideId "1550446"]
[BlackFideId "1773488"]
[WhiteElo "1495"]
[BlackElo "1644"]

1. d4 {[%clk 01:30:57]} {[%emt 00:00:02]} d5 {[%clk 01:30:46]} {[%emt
00:00:14]} 2. Bf4 {[%clk 01:31:14]} {[%emt 00:00:14]} c5 {[%clk 01:30:49]}
{[%emt 00:00:27]} 3. c3 {[%clk 01:31:36]} {[%emt 00:00:06]} Nc6 {[%clk
01:29:58]} {[%emt 00:01:22]} 4. e3 {[%clk 01:30:50]} {[%emt 00:01:16]} Qb6
{[%clk 01:29:02]} {[%emt 00:01:27]} 5. Qb3 {[%clk 01:30:30]} {[%emt 00:00:50]}
c4 {[%clk 01:27:57]} {[%emt 00:01:35]} 6. Qxb6 {[%clk 01:28:23]} {[%emt
00:02:36]} axb6 {[%clk 01:27:21]} {[%emt 00:01:07]} 7. e4 {[%clk 01:28:35]}
{[%emt 00:00:18]} e6 {[%clk 01:25:52]} {[%emt 00:01:59]} 8. Nd2 {[%clk
01:28:54]} {[%emt 00:00:11]} b5 {[%clk 01:25:26]} {[%emt 00:00:57]} 9. g3
{[%clk 01:26:18]} {[%emt 00:03:05]} Bd7 {[%clk 01:17:31]} {[%emt 00:08:24]} 10.
Bg2 {[%clk 01:25:05]} {[%emt 00:01:42]} Nce7 {[%clk 01:14:21]} {[%emt
00:03:41]} 11. Bd6 {[%clk 01:22:47]} {[%emt 00:02:47]} Bc6 {[%clk 01:12:02]}
{[%emt 00:02:50]} 12. e5 {[%clk 01:21:14]} {[%emt 00:02:04]} Nf5 {[%clk
01:05:25]} {[%emt 00:07:06]} 13. Bxf8 {[%clk 01:20:16]} {[%emt 00:01:28]} Kxf8
{[%clk 01:05:42]} {[%emt 00:00:13]} 14. g4 {[%clk 01:19:11]} {[%emt 00:01:35]}
Nh4 {[%clk 01:03:44]} {[%emt 00:02:29]} 15. Bh3 {[%clk 01:14:00]} {[%emt
00:05:41]} h5 {[%clk 00:58:31]} {[%emt 00:05:42]} 16. Ngf3 {[%clk 01:11:43]}
{[%emt 00:02:43]} hxg4 {[%clk 00:50:09]} {[%emt 00:08:57]} 17. Bxg4 {[%clk
01:09:54]} {[%emt 00:02:17]} Nh6 {[%emt 00:09:28]} 18. Nxh4 {[%clk 01:07:43]}
{[%emt 00:02:38]} Nxg4 {[%clk 00:41:27]} {[%emt 00:00:18]} 19. Ndf3 {[%clk
01:07:32]} {[%emt 00:00:40]} g6 {[%clk 00:33:00]} {[%emt 00:08:59]} 20. Rg1
{[%clk 01:04:22]} {[%emt 00:03:37]} Nxh2 {[%clk 00:30:47]} {[%emt 00:02:45]} 21.
Nxh2 {[%clk 01:01:30]} {[%emt 00:03:23]} Rxh4 {[%clk 00:30:40]} {[%emt
00:00:36]} 22. Nf3 {[%clk 01:01:55]} {[%emt 00:00:05]} Rh6 {[%clk 00:26:45]}
{[%emt 00:04:25]} 23. a3 {[%clk 01:01:27]} {[%emt 00:00:59]} Ke7 {[%clk
00:26:40]} {[%emt 00:00:35]} 24. Ke2 {[%clk 01:01:02]} {[%emt 00:00:54]} Rah8
{[%clk 00:26:42]} {[%emt 00:00:29]} 25. Rae1 {[%clk 00:59:53]} {[%emt
00:01:38]} Bd7 {[%clk 00:23:32]} {[%emt 00:03:40]} 26. Kd2 {[%clk 00:57:02]}
{[%emt 00:03:20]} Rh3 {[%clk 00:21:30]} {[%emt 00:02:33]} 27. Ke2 {[%clk
00:56:00]} {[%emt 00:01:32]} R8h6 {[%clk 00:20:25]} {[%emt 00:01:35]} 28. Ng5
{[%clk 00:54:34]} {[%emt 00:01:56]} R3h5 {[%clk 00:18:22]} {[%emt 00:02:33]} 29.
f4 {[%clk 00:53:37]} {[%emt 00:01:26]} Rh2+ {[%clk 00:17:57]} {[%emt 00:00:55]}
30. Kd1 {[%clk 00:49:48]} {[%emt 00:04:20]} Rxb2 {[%clk 00:17:52]} {[%emt
00:00:36]} 31. Re2 {[%clk 00:50:06]} {[%emt 00:00:11]} Rb1+ {[%clk 00:17:21]}
{[%emt 00:01:01]} 0-1

[Event "The Schackveckan 2023: Chessweek Elo-tournaments Group 2"]
[Site "Göteborgs schackcentrum, Vegagatan 20, Gothenburg, Sweden"]
[Date "2023.08.07"]
[Round "3.6"]
[White "Madevan Vaishnavi, Yaashvan"]
[Black "Dahlin, Emil"]
[Result "0-1"]
[TimeControl "90 minutes for 40 moves + 30 minutes for the rest of the game + 30 seconds per move from move one."]
[WhiteFideId "1772180"]
[BlackFideId "1771035"]
[WhiteElo "1425"]
[BlackElo "1284"]

1. e4 {[%clk 01:30:59]} e5 {[%clk 01:30:57]} {[%emt 00:00:03]} 2. Nf3 {[%clk
01:31:23]} {[%emt 00:00:06]} Nc6 {[%clk 01:31:09]} {[%emt 00:00:18]} 3. d4
{[%clk 01:31:46]} {[%emt 00:00:08]} exd4 {[%clk 01:31:26]} {[%emt 00:00:13]} 4.
Bc4 {[%clk 01:32:10]} {[%emt 00:00:06]} Bb4+ {[%clk 01:31:03]} {[%emt
00:00:52]} 5. c3 {[%clk 01:32:30]} {[%emt 00:00:09]} dxc3 {[%clk 01:31:20]}
{[%emt 00:00:14]} 6. bxc3 {[%clk 01:32:55]} {[%emt 00:00:06]} Ba5 {[%clk
01:31:15]} {[%emt 00:00:35]} 7. Qb3 {[%clk 01:32:26]} {[%emt 00:00:59]} Qe7
{[%clk 01:28:33]} {[%emt 00:03:11]} 8. O-O {[%clk 01:32:15]} {[%emt 00:00:41]}
d6 {[%clk 01:21:30]} {[%emt 00:07:34]} 9. Ng5 {[%clk 01:29:28]} {[%emt
00:03:16]} Nh6 {[%clk 01:18:03]} {[%emt 00:03:57]} 10. Bd5 {[%clk 01:28:13]}
{[%emt 00:01:45]} O-O {[%clk 01:12:51]} {[%emt 00:05:42]} 11. Bxc6 {[%clk
01:22:58]} {[%emt 00:05:45]} bxc6 {[%clk 01:12:54]} {[%emt 00:00:28]} 12. Qa4
{[%clk 01:23:17]} {[%emt 00:00:11]} Bb6 {[%clk 01:03:43]} {[%emt 00:09:40]} 13.
Qxc6 {[%clk 01:21:31]} Bd7 {[%clk 01:02:11]} {[%emt 00:04:19]} 14. Qc4 {[%clk
01:20:32]} {[%emt 00:01:28]} Rab8 {[%clk 00:59:30]} {[%emt 00:03:11]} 15. a4
{[%clk 01:17:06]} {[%emt 00:03:57]} Be6 {[%clk 00:52:05]} {[%emt 00:07:55]} 16.
Nxe6 {[%clk 01:16:01]} {[%emt 00:01:34]} Qxe6 {[%clk 00:51:37]} {[%emt
00:00:58]} 17. Qd5 {[%clk 01:13:52]} {[%emt 00:02:40]} Qxd5 {[%clk 00:50:52]}
{[%emt 00:01:14]} 18. exd5 {[%clk 01:14:14]} {[%emt 00:00:08]} Ng4 {[%clk
00:50:39]} {[%emt 00:00:43]} 19. a5 {[%clk 01:13:07]} {[%emt 00:01:38]} Bc5
{[%clk 00:49:49]} {[%emt 00:01:20]} 20. Ba3 {[%clk 01:13:17]} {[%emt 00:00:19]}
Bxa3 {[%clk 00:47:40]} {[%emt 00:02:39]} 21. Nxa3 {[%clk 01:13:12]} {[%emt
00:00:35]} Rfe8 {[%clk 00:47:35]} {[%emt 00:00:35]} 22. h3 {[%clk 01:12:15]}
{[%emt 00:01:27]} Nf6 {[%clk 00:47:04]} {[%emt 00:01:01]} 23. c4 {[%clk
01:11:02]} {[%emt 00:01:44]} a6 {[%clk 00:45:32]} {[%emt 00:02:01]} 24. Rab1
{[%clk 01:09:26]} {[%emt 00:02:06]} Nd7 {[%clk 00:43:09]} {[%emt 00:02:53]} 25.
Nc2 {[%clk 01:07:51]} {[%emt 00:02:05]} Ne5 {[%clk 00:38:14]} {[%emt 00:05:25]}
26. Nb4 {[%clk 01:06:21]} {[%emt 00:01:59]} Nxc4 {[%clk 00:37:45]} {[%emt
00:01:00]} 27. Nxa6 {[%clk 01:06:44]} {[%emt 00:00:07]} Rxb1 {[%clk 00:36:43]}
{[%emt 00:01:32]} 28. Rxb1 {[%clk 01:07:07]} {[%emt 00:00:08]} Nxa5 {[%clk
00:36:14]} {[%emt 00:00:59]} 29. Nxc7 {[%clk 01:05:53]} {[%emt 00:01:44]} Rd8
{[%clk 00:35:05]} {[%emt 00:01:39]} 30. Kf1 {[%clk 01:04:43]} {[%emt 00:01:40]}
Kf8 {[%clk 00:34:17]} {[%emt 00:01:17]} 31. Rb5 {[%clk 01:04:29]} {[%emt
00:00:43]} Nc4 {[%clk 00:33:54]} {[%emt 00:00:54]} 32. Rb7 {[%clk 01:03:56]}
{[%emt 00:01:03]} Ne5 {[%clk 00:25:19]} {[%emt 00:09:06]} 33. Nb5 {[%clk
01:02:01]} {[%emt 00:02:24]} Ke8 {[%clk 00:24:57]} {[%emt 00:00:53]} 34. Ke2
{[%clk 00:58:50]} {[%emt 00:03:40]} Rd7 {[%clk 00:24:50]} {[%emt 00:00:37]} 35.
Rb8+ {[%clk 00:57:53]} {[%emt 00:01:28]} Ke7 {[%clk 00:24:37]} {[%emt
00:00:42]} 36. f4 {[%clk 00:57:48]} {[%emt 00:00:34]} Ng6 {[%clk 00:21:15]}
{[%emt 00:03:53]} 37. Kf3 {[%clk 00:56:15]} {[%emt 00:02:04]} Nh4+ {[%clk
00:19:53]} {[%emt 00:01:52]} 38. Kf2 {[%clk 00:54:10]} {[%emt 00:02:34]} Ng6
{[%clk 00:17:57]} {[%emt 00:02:26]} 39. Ke3 {[%clk 00:54:02]} {[%emt 00:00:38]}
Kf6 {[%clk 00:15:40]} {[%emt 00:02:46]} 40. Rb6 {[%clk 00:51:14]} {[%emt
00:03:19]} Ke7 {[%clk 00:14:01]} {[%emt 00:02:10]} 41. g4 {[%clk 00:50:32]}
{[%emt 00:01:11]} Nf8 {[%clk 00:08:36]} {[%emt 00:05:55]} 42. Nd4 {[%clk
00:50:04]} {[%emt 00:00:58]} g6 {[%clk 00:07:15]} {[%emt 00:01:51]} 43. Ke4
{[%clk 00:46:55]} {[%emt 00:03:39]} h6 {[%clk 00:02:51]} {[%emt 00:04:54]} 44.
h4 {[%clk 00:46:33]} {[%emt 00:00:52]} Nh7 {[%clk 00:02:51]} {[%emt 00:00:31]}
45. g5 {[%clk 00:46:49]} {[%emt 00:00:14]} h5 {[%clk 00:29:44]} {[%emt
00:03:36]} 46. f5 {[%clk 01:16:44]} {[%emt 00:00:35]} Kd8 {[%clk 00:26:19]}
{[%emt 00:03:54]} 47. Rb8+ {[%clk 01:15:51]} {[%emt 00:01:24]} Kc7 {[%clk
00:25:45]} {[%emt 00:01:05]} 48. Rh8 {[%clk 01:16:13]} {[%emt 00:00:07]} gxf5+
{[%clk 00:25:28]} {[%emt 00:00:47]} 49. Kxf5 {[%clk 01:16:29]} {[%emt
00:00:14]} Nxg5 {[%clk 00:22:57]} {[%emt 00:03:00]} 50. Kxg5 {[%clk 01:16:41]}
{[%emt 00:00:19]} Re7 {[%clk 00:22:59]} {[%emt 00:00:28]} 51. Kf6 {[%clk
01:16:33]} {[%emt 00:00:38]} Re4 {[%clk 00:21:44]} {[%emt 00:01:46]} 52. Nf3
{[%clk 01:16:50]} {[%emt 00:00:12]} Rf4+ {[%clk 00:21:45]} {[%emt 00:00:29]} 53.
Kg5 {[%clk 01:16:49]} {[%emt 00:00:32]} Rxf3 {[%clk 00:21:34]} {[%emt
00:00:41]} 54. Kxh5 {[%clk 01:16:57]} {[%emt 00:00:21]} f5 {[%clk 00:20:51]}
{[%emt 00:01:13]} 55. Rf8 {[%clk 01:16:51]} {[%emt 00:00:37]} Kd7 {[%clk
00:20:13]} {[%emt 00:01:08]} 56. Kg5 {[%clk 01:16:12]} {[%emt 00:01:08]} Rg3+
{[%clk 00:19:35]} {[%emt 00:01:08]} 57. Kxf5 {[%clk 01:16:24]} {[%emt
00:00:19]} Rf3+ {[%clk 00:19:54]} {[%emt 00:00:10]} 0-1

[Event "The Schackveckan 2023: Chessweek Elo-tournaments Group 2"]
[Site "Göteborgs schackcentrum, Vegagatan 20, Gothenburg, Sweden"]
[Date "2023.08.08"]
[Round "4.1"]
[White "Lindholm, Marcus"]
[Black "Block, Benjamin"]
[Result "0-1"]
[TimeControl "90 minutes for 40 moves + 30 minutes for the rest of the game + 30 seconds per move from move one."]
[WhiteFideId "1743473"]
[BlackFideId "1765493"]
[WhiteElo "1708"]
[BlackElo "1679"]

1. d4 {[%clk 01:30:49]} {[%emt 00:00:09]} d5 {[%clk 01:30:47]} {[%emt
00:00:13]} 2. c4 {[%clk 01:31:13]} {[%emt 00:00:07]} dxc4 {[%clk 01:31:01]}
{[%emt 00:00:17]} 3. e4 {[%clk 01:31:30]} {[%emt 00:00:12]} e5 {[%clk
01:31:12]} {[%emt 00:00:20]} 4. d5 {[%clk 01:30:50]} {[%emt 00:01:09]} Nf6
{[%clk 01:31:25]} {[%emt 00:00:17]} 5. Nc3 {[%clk 01:31:03]} {[%emt 00:00:17]}
b5 {[%clk 01:31:44]} {[%emt 00:00:11]} 6. Bg5 {[%clk 01:28:46]} {[%emt
00:02:46]} Bc5 {[%clk 01:32:04]} {[%emt 00:00:11]} 7. Qf3 {[%clk 01:23:44]}
{[%emt 00:05:32]} c6 {[%clk 01:17:28]} {[%emt 00:15:07]} 8. Bxf6 {[%clk
01:15:10]} {[%emt 00:09:03]} Qxf6 {[%clk 01:11:54]} {[%emt 00:06:04]} 9. Qxf6
{[%clk 01:14:48]} {[%emt 00:00:52]} gxf6 {[%clk 01:12:14]} {[%emt 00:00:10]} 10.
dxc6 {[%clk 01:15:09]} {[%emt 00:00:09]} Nxc6 {[%clk 01:09:24]} {[%emt
00:03:20]} 11. Nxb5 {[%clk 01:13:10]} {[%emt 00:02:29]} Rb8 {[%clk 01:04:51]}
{[%emt 00:05:03]} 12. Nc7+ {[%clk 01:11:35]} {[%emt 00:02:05]} Kd8 {[%clk
01:04:27]} {[%emt 00:00:53]} 13. Nd5 {[%clk 01:11:55]} {[%emt 00:00:10]} Rxb2
{[%clk 01:04:26]} {[%emt 00:00:32]} 14. O-O-O {[%clk 01:12:11]} {[%emt
00:00:14]} Rxf2 {[%clk 01:02:24]} {[%emt 00:02:32]} 15. Bxc4 {[%clk 00:46:46]}
{[%emt 00:25:55]} Nd4 {[%clk 01:02:14]} {[%emt 00:00:40]} 16. Ne2 {[%clk
00:41:50]} {[%emt 00:05:26]} Bg4 {[%clk 00:53:51]} {[%emt 00:08:53]} 17. Nxd4
{[%clk 00:37:21]} {[%emt 00:04:59]} Bxd4 {[%clk 00:52:17]} {[%emt 00:02:04]} 18.
Rd3 {[%clk 00:36:05]} {[%emt 00:01:46]} Kd7 {[%clk 00:44:38]} {[%emt 00:08:09]}
19. Ba6 {[%clk 00:18:54]} {[%emt 00:17:41]} Rxa2 {[%clk 00:33:35]} {[%emt
00:11:33]} 20. Nxf6+ {[%clk 00:16:23]} {[%emt 00:03:01]} Ke7 {[%clk 00:33:21]}
{[%emt 00:00:44]} 21. Nd5+ {[%clk 00:15:41]} {[%emt 00:01:13]} Kd6 {[%clk
00:33:21]} {[%emt 00:00:29]} 22. Rf1 {[%clk 00:10:49]} {[%emt 00:05:22]} Ra1+
{[%clk 00:31:23]} {[%emt 00:02:27]} 23. Kc2 {[%clk 00:11:04]} {[%emt 00:00:15]}
Rxf1 {[%clk 00:31:12]} {[%emt 00:00:42]} 24. Rxd4 {[%clk 00:10:05]} {[%emt
00:01:30]} exd4 {[%clk 00:30:13]} {[%emt 00:01:28]} 25. Bxf1 {[%clk 00:10:27]}
{[%emt 00:00:08]} Be6 {[%clk 00:29:40]} {[%emt 00:01:03]} 26. Nb4 {[%clk
00:10:05]} {[%emt 00:00:52]} a5 {[%clk 00:28:32]} {[%emt 00:01:38]} 27. Nd3
{[%clk 00:09:39]} {[%emt 00:00:56]} Bc4 {[%clk 00:25:41]} {[%emt 00:03:18]} 28.
g3 {[%clk 00:09:27]} {[%emt 00:00:45]} Bxd3+ {[%clk 00:25:48]} {[%emt
00:00:22]} 29. Bxd3 {[%clk 00:09:49]} {[%emt 00:00:09]} Ke5 {[%clk 00:24:33]}
{[%emt 00:01:45]} 0-1

[Event "The Schackveckan 2023: Chessweek Elo-tournaments Group 2"]
[Site "Göteborgs schackcentrum, Vegagatan 20, Gothenburg, Sweden"]
[Date "2023.08.08"]
[Round "4.2"]
[White "Green, David"]
[Black "Yang, Mandi"]
[Result "1/2-1/2"]
[TimeControl "90 minutes for 40 moves + 30 minutes for the rest of the game + 30 seconds per move from move one."]
[WhiteFideId "1769332"]
[BlackFideId "1774778"]
[WhiteElo "1634"]
[BlackElo "1457"]

1. e4 {[%clk 01:30:58]} c6 {[%clk 01:30:55]} {[%emt 00:00:06]} 2. d4 {[%clk
01:31:25]} {[%emt 00:00:03]} d5 {[%clk 01:31:18]} {[%emt 00:00:07]} 3. f3
{[%clk 01:31:51]} {[%emt 00:00:04]} dxe4 {[%clk 01:31:29]} {[%emt 00:00:20]} 4.
fxe4 {[%clk 01:32:19]} {[%emt 00:00:02]} e5 {[%clk 01:31:39]} {[%emt 00:00:19]}
5. Nf3 {[%clk 01:32:46]} {[%emt 00:00:03]} Bg4 {[%clk 01:32:00]} {[%emt
00:00:08]} 6. Bc4 {[%clk 01:33:11]} {[%emt 00:00:05]} Nd7 {[%clk 01:32:07]}
{[%emt 00:00:24]} 7. c3 {[%clk 01:33:30]} {[%emt 00:00:11]} Bh5 {[%clk
01:31:59]} {[%emt 00:00:38]} 8. Be3 {[%clk 01:30:40]} {[%emt 00:03:20]} Ngf6
{[%clk 01:27:23]} {[%emt 00:05:07]} 9. Nbd2 {[%clk 01:30:22]} {[%emt 00:00:48]}
Bd6 {[%clk 01:23:50]} {[%emt 00:04:03]} 10. O-O {[%clk 01:29:12]} {[%emt
00:01:38]} O-O {[%clk 01:16:34]} {[%emt 00:07:47]} 11. Qc2 {[%clk 01:27:03]}
{[%emt 00:02:39]} h6 {[%clk 01:14:14]} {[%emt 00:02:51]} 12. Kh1 {[%clk
01:18:51]} {[%emt 00:08:41]} Re8 {[%clk 01:07:36]} {[%emt 00:07:09]} 13. Rae1
{[%clk 01:15:54]} {[%emt 00:03:26]} Bg6 {[%clk 01:05:24]} {[%emt 00:02:42]} 14.
Nh4 {[%clk 01:09:02]} {[%emt 00:07:22]} Nf8 {[%clk 00:49:00]} {[%emt 00:16:54]}
15. Nxg6 {[%clk 01:05:49]} {[%emt 00:03:43]} Nxg6 {[%clk 00:48:21]} {[%emt
00:01:09]} 16. Rf2 {[%clk 00:51:55]} {[%emt 00:14:25]} Re7 {[%clk 00:40:59]}
{[%emt 00:07:51]} 17. h3 {[%clk 00:46:17]} {[%emt 00:06:08]} Kh7 {[%clk
00:32:40]} {[%emt 00:08:49]} 18. a4 {[%clk 00:39:08]} {[%emt 00:07:39]} Qd7
{[%clk 00:27:09]} {[%emt 00:06:01]} 19. Rff1 {[%clk 00:29:47]} {[%emt
00:09:50]} Nh5 {[%clk 00:22:02]} {[%emt 00:05:38]} 20. Bf2 {[%clk 00:29:30]}
{[%emt 00:00:48]} 1/2-1/2

[Event "The Schackveckan 2023: Chessweek Elo-tournaments Group 2"]
[Site "Göteborgs schackcentrum, Vegagatan 20, Gothenburg, Sweden"]
[Date "2023.08.08"]
[Round "4.4"]
[White "Gallardo, Guillermo"]
[Black "Pintaric, Felix"]
[Result "0-1"]
[TimeControl "90 minutes for 40 moves + 30 minutes for the rest of the game + 30 seconds per move from move one."]
[WhiteFideId "1773488"]
[BlackFideId "1776096"]
[WhiteElo "1644"]
[BlackElo "1483"]

1. Nf3 {[%clk 01:30:57]} {[%emt 00:00:02]} c5 {[%clk 01:30:43]} {[%emt
00:00:18]} 2. c4 {[%clk 01:30:59]} {[%emt 00:00:27]} Nf6 {[%clk 01:31:04]}
{[%emt 00:00:08]} 3. Nc3 {[%clk 01:31:13]} {[%emt 00:00:17]} Nc6 {[%clk
01:30:51]} {[%emt 00:00:44]} 4. e4 {[%clk 01:29:45]} {[%emt 00:01:56]} d6
{[%clk 01:30:32]} {[%emt 00:00:50]} 5. g3 {[%clk 01:29:00]} {[%emt 00:01:15]}
Bg4 {[%clk 01:29:50]} {[%emt 00:01:12]} 6. Bg2 {[%clk 01:26:08]} {[%emt
00:03:21]} Nd4 {[%clk 01:29:22]} {[%emt 00:00:59]} 7. h3 {[%clk 01:25:06]}
{[%emt 00:01:31]} Nxf3+ {[%clk 01:29:33]} {[%emt 00:00:20]} 8. Bxf3 {[%clk
01:24:56]} {[%emt 00:00:40]} Bxf3 {[%clk 01:29:57]} {[%emt 00:00:06]} 9. Qxf3
{[%clk 01:25:23]} {[%emt 00:00:03]} g6 {[%clk 01:28:11]} {[%emt 00:02:17]} 10.
d3 {[%clk 01:25:12]} {[%emt 00:00:41]} Bg7 {[%clk 01:28:06]} {[%emt 00:00:34]}
11. Bd2 {[%clk 01:20:34]} {[%emt 00:05:08]} Rb8 {[%clk 01:27:05]} {[%emt
00:01:32]} 12. O-O {[%clk 01:20:54]} {[%emt 00:00:09]} O-O {[%clk 01:27:00]}
{[%emt 00:00:36]} 13. Qe2 {[%clk 01:18:07]} {[%emt 00:03:16]} Qd7 {[%clk
01:21:23]} {[%emt 00:06:08]} 14. Kg2 {[%clk 01:17:50]} {[%emt 00:00:46]} Ne8
{[%clk 01:17:38]} {[%emt 00:04:15]} 15. Rab1 {[%clk 01:15:02]} {[%emt
00:03:18]} Nc7 {[%clk 01:17:13]} {[%emt 00:00:55]} 16. Qd1 {[%clk 00:57:03]}
{[%emt 00:18:28]} f5 {[%clk 01:12:43]} {[%emt 00:05:01]} 17. Qc1 {[%clk
00:52:15]} {[%emt 00:05:18]} e5 {[%clk 01:09:03]} {[%emt 00:04:10]} 18. f4
{[%clk 00:46:46]} {[%emt 00:05:59]} Ne6 {[%clk 01:04:49]} {[%emt 00:04:44]} 19.
fxe5 {[%clk 00:43:20]} {[%emt 00:03:57]} Bxe5 {[%clk 01:03:51]} {[%emt
00:01:27]} 20. exf5 {[%clk 00:39:16]} {[%emt 00:04:34]} gxf5 {[%clk 01:03:11]}
{[%emt 00:01:11]} 21. Bh6 {[%clk 00:38:04]} {[%emt 00:01:41]} Rf6 {[%clk
00:59:55]} {[%emt 00:03:46]} 22. Nd5 {[%clk 00:31:19]} {[%emt 00:07:15]} Rg6
{[%clk 00:59:31]} {[%emt 00:00:54]} 23. Bf4 {[%clk 00:29:16]} {[%emt 00:02:34]}
Qg7 {[%clk 00:57:58]} {[%emt 00:02:03]} 24. Bxe5 {[%clk 00:24:40]} {[%emt
00:05:05]} dxe5 {[%clk 00:58:09]} {[%emt 00:00:19]} 25. Qe1 {[%clk 00:15:01]}
{[%emt 00:10:09]} f4 {[%clk 00:56:49]} {[%emt 00:01:50]} 26. g4 {[%clk
00:13:18]} {[%emt 00:02:13]} h5 {[%clk 00:56:43]} {[%emt 00:00:37]} 27. Qe4
{[%clk 00:12:52]} {[%emt 00:00:55]} Re8 {[%clk 00:54:47]} {[%emt 00:02:25]} 28.
Nxf4 {[%clk 00:08:39]} {[%emt 00:04:44]} exf4 {[%clk 00:54:26]} {[%emt
00:00:51]} 0-1